Workbook

Sheet Phaseurs triphasés
B2: =PI() -> 3.141592654 | K2: Principe des phaseurs appliqué à un système triphasé
C4: Vecteur tournant | E4: Projection horizontale
C5: 0 | D5: 0 | E5: =C6 -> 6.125742275e-17 | F5: =D6 -> 1 | H5: 1.4 | I5: 1.4
B6: 0 | C6: =COS(B6+PI()/2) -> 6.125742275e-17 | D6: =SIN(B6+PI()/2) -> 1 | E6: =B6+1.4 -> 1.4 | F6: =D6 -> 1 | H6: 1.4 | I6: -1.4
C8: 0 | D8: 0 | E8: =C9 -> -0.8660254038 | F8: =D9 -> -0.5 | H8: =PI()/2+1.4 -> 2.970796327 | I8: 0.03
B9: =B6+2*PI()/3 -> 2.094395102 | C9: =COS(B9+PI()/2) -> -0.8660254038 | D9: =SIN(B9+PI()/2) -> -0.5 | E9: =E6 -> 1.4 | F9: =D9 -> -0.5 | H9: =H8 -> 2.970796327 | I9: -0.03
C11: 0 | D11: 0 | E11: =C12 -> 0.8660254038 | F11: =D12 -> -0.5 | H11: =PI()+1.4 -> 4.541592654 | I11: 0.03
B12: =B9+2*PI()/3 -> 4.188790205 | C12: =COS(B12+PI()/2) -> 0.8660254038 | D12: =SIN(B12+PI()/2) -> -0.5 | E12: =E6 -> 1.4 | F12: =D12 -> -0.5 | H12: =H11 -> 4.541592654 | I12: -0.03
E14: =E12 -> 1.4 | F14: =MAX(F5,F8,F11) -> 1 | H14: =3*PI()/2+1.4 -> 6.11238898 | I14: 0.03
E15: =E14 -> 1.4 | F15: =MIN(F6,F9,F12) -> -0.5 | H15: =H14 -> 6.11238898 | I15: -0.03
H17: =2*PI()+1.4 -> 7.683185307 | I17: 0.03
H18: =H17 -> 7.683185307 | I18: -0.03
C20: θ tournant | E20: θ cosinus
C21: =COS((B6/2+PI()/2))*0.35-0.09 -> -0.09 | D21: =SIN((B6/2+PI()/2))*0.35+0.03 -> 0.38 | E21: =B6/2+1.4 -> 1.4 | F21: -0.1 | K21: À noter que pour les fins de cette animation l'axe des réels ℝ est ici tourné de 90° anti-horaire
K26: Pour les fins du cours "Caractéristiques électriques des postes HT/MT"
